[Event "Titled Tuesday Blitz April 11 Late 2023"]
[White "Sai Han Thiha"]
[Black "Gallegos Diaz, Carlos Alberto"]
[WhiteFideId "13012290"]
[BlackFideId "3900886"]
[WhiteElo "1954"]
[BlackElo "2362"]
[Result "0-1"]
[Round "10"]
[TimeControl "180+2"]
[Date "2023.04.11"]
[WhiteClock "0:00:01"]
[BlackClock "0:00:04"]

1. d4 {[%clk 0:03:00]}  d6 {[%clk 0:02:59]} 2. e4 {[%clk 0:02:55]}  Nf6 {[%clk 0:02:59]} 3. Nc3 {[%clk 0:02:56]}  c6 {[%clk 0:02:59]} 4. f4 {[%clk 0:02:53]}  Qa5 {[%clk 0:02:58]} 5. e5 {[%clk 0:02:51]}  Ne4 {[%clk 0:02:58]} 6. Qf3 {[%clk 0:02:51]}  Nxc3 {[%clk 0:02:56]} 7. Bd2 {[%clk 0:02:51]}  Qd5 {[%clk 0:02:55]} 8. Bxc3 {[%clk 0:02:49]}  Bf5 {[%clk 0:02:51]} 9. O-O-O {[%clk 0:02:17]}  Nd7 {[%clk 0:01:53]} 10. Qf2 {[%clk 0:02:15]}  Qxa2 {[%clk 0:01:51]} 11. Nf3 {[%clk 0:02:04]}  d5 {[%clk 0:01:43]} 12. Nh4 {[%clk 0:01:25]}  Be4 {[%clk 0:01:36]} 13. e6 {[%clk 0:01:19]}  fxe6 {[%clk 0:01:36]} 14. Bd3 {[%clk 0:01:17]}  Bxd3 {[%clk 0:01:27]} 15. cxd3 {[%clk 0:01:18]}  a5 {[%clk 0:01:02]} 16. Rhe1 {[%clk 0:00:29]}  a4 {[%clk 0:01:01]} 17. Qc2 {[%clk 0:00:29]}  a3 {[%clk 0:00:35]} 18. bxa3 {[%clk 0:00:26]}  Qxc2+ {[%clk 0:00:21]} 19. Kxc2 {[%clk 0:00:26]}  Rxa3 {[%clk 0:00:19]} 20. Ra1 {[%clk 0:00:24]}  Rxa1 {[%clk 0:00:18]} 21. Rxa1 {[%clk 0:00:25]}  Kf7 {[%clk 0:00:17]} 22. Ra8 {[%clk 0:00:20]}  g6 {[%clk 0:00:17]} 23. Nf3 {[%clk 0:00:19]}  h6 {[%clk 0:00:15]} 24. Rd8 {[%clk 0:00:19]}  Nf6 {[%clk 0:00:14]} 25. Ne5+ {[%clk 0:00:19]}  Kg7 {[%clk 0:00:14]} 26. Rb8 {[%clk 0:00:15]}  g5 {[%clk 0:00:14]} 27. g3 {[%clk 0:00:14]}  gxf4 {[%clk 0:00:15]} 28. gxf4 {[%clk 0:00:14]}  h5 {[%clk 0:00:15]} 29. Rxb7 {[%clk 0:00:14]}  h4 {[%clk 0:00:15]} 30. h3 {[%clk 0:00:13]}  Rh5 {[%clk 0:00:14]} 31. Rc7 {[%clk 0:00:11]}  Rf5 {[%clk 0:00:14]} 32. Bd2 {[%clk 0:00:12]}  Nh5 {[%clk 0:00:13]} 33. Nxc6 {[%clk 0:00:10]}  Kf7 {[%clk 0:00:11]} 34. Ne5+ {[%clk 0:00:09]}  Kg7 {[%clk 0:00:09]} 35. Nc6 {[%clk 0:00:06]}  Kf7 {[%clk 0:00:08]} 36. Nd8+ {[%clk 0:00:07]}  Kf6 {[%clk 0:00:07]} 37. Rc6 {[%clk 0:00:07]}  Ng7 {[%clk 0:00:06]} 38. Nb7 {[%clk 0:00:04]}  Kf7 {[%clk 0:00:06]} 39. Nc5 {[%clk 0:00:04]}  Rf6 {[%clk 0:00:05]} 40. Nd7 {[%clk 0:00:04]}  Rg6 {[%clk 0:00:04]} 41. Rc8 {[%clk 0:00:04]}  Rg2 {[%clk 0:00:04]} 42. Rxf8+ {[%clk 0:00:04]}  Kg6 {[%clk 0:00:05]} 43. Ne5+ {[%clk 0:00:03]}  Kh7 {[%clk 0:00:03]} 44. Rf7 {[%clk 0:00:03]}  Kg8 {[%clk 0:00:04]} 45. Rxe7 {[%clk 0:00:03]}  Nf5 {[%clk 0:00:05]} 46. Re8+ {[%clk 0:00:01]}  Kg7 {[%clk 0:00:05]} 47. Nc6 {[%clk 0:00:01]}  Ne3+ {[%clk 0:00:04]} 48. Kc1 {[%clk 0:00:01]}  Nf1 {[%clk 0:00:05]} 49. Bc3 {[%clk 0:00:01]}  Ne3 {[%clk 0:00:04]} 0-1


[Site "https://www.chess.com"]

[Event "Titled Tuesday Blitz April 11 Late 2023"]
[White "Sreyas Payyappat"]
[Black "Garcia Cuenca, Victor"]
[WhiteFideId "46674969"]
[BlackFideId "2250829"]
[WhiteElo "2083"]
[BlackElo "2329"]
[Result "1-0"]
[Round "10"]
[TimeControl "180+2"]
[Date "2023.04.11"]
[WhiteClock "0:01:01"]
[BlackClock "0:00:18"]

1. e4 {[%clk 0:03:00]}  c5 {[%clk 0:02:56]} 2. Nf3 {[%clk 0:03:00]}  e6 {[%clk 0:02:56]} 3. d4 {[%clk 0:02:57]}  cxd4 {[%clk 0:02:56]} 4. Nxd4 {[%clk 0:02:58]}  Nf6 {[%clk 0:02:56]} 5. Nc3 {[%clk 0:02:56]}  d6 {[%clk 0:02:55]} 6. f4 {[%clk 0:02:54]}  a6 {[%clk 0:02:53]} 7. Be3 {[%clk 0:02:54]}  Nbd7 {[%clk 0:02:47]} 8. Be2 {[%clk 0:02:50]}  Qc7 {[%clk 0:02:42]} 9. Bf3 {[%clk 0:02:51]}  Nb6 {[%clk 0:02:27]} 10. O-O {[%clk 0:02:13]}  Be7 {[%clk 0:02:15]} 11. Qe2 {[%clk 0:01:59]}  e5 {[%clk 0:02:09]} 12. Nf5 {[%clk 0:01:53]}  Bxf5 {[%clk 0:02:02]} 13. exf5 {[%clk 0:01:54]}  Nc4 {[%clk 0:02:00]} 14. fxe5 {[%clk 0:01:53]}  dxe5 {[%clk 0:01:46]} 15. Bg5 {[%clk 0:01:52]}  Nxb2 {[%clk 0:01:33]} 16. Bxf6 {[%clk 0:01:49]}  Bxf6 {[%clk 0:01:22]} 17. Nd5 {[%clk 0:01:47]}  Qc5+ {[%clk 0:01:19]} 18. Kh1 {[%clk 0:01:47]}  Nc4 {[%clk 0:01:09]} 19. Rab1 {[%clk 0:01:36]}  O-O {[%clk 0:01:02]} 20. Nxf6+ {[%clk 0:01:34]}  gxf6 {[%clk 0:01:00]} 21. Bxb7 {[%clk 0:01:31]}  Ra7 {[%clk 0:00:54]} 22. Rb3 {[%clk 0:01:26]}  Nd6 {[%clk 0:00:44]} 23. Qg4+ {[%clk 0:01:22]}  Kh8 {[%clk 0:00:38]} 24. Rg3 {[%clk 0:01:23]}  Ne8 {[%clk 0:00:28]} 25. Qh5 {[%clk 0:01:02]}  Rxb7 {[%clk 0:00:18]} 26. Rh3 {[%clk 0:01:01]} 1-0


[Site "https://www.chess.com"]

[Event "Titled Tuesday Blitz April 11 Late 2023"]
[White "Alahakoon, Isuru"]
[Black "Santos Flores, Alberto"]
[WhiteFideId "9900993"]
[BlackFideId "3601234"]
[WhiteElo "1995"]
[BlackElo "2235"]
[Result "0-1"]
[Round "10"]
[TimeControl "180+2"]
[Date "2023.04.11"]
[WhiteClock "0:00:16"]
[BlackClock "0:01:10"]

1. Nf3 {[%clk 0:03:00]}  d5 {[%clk 0:02:55]} 2. e3 {[%clk 0:03:00]}  Nf6 {[%clk 0:02:55]} 3. c4 {[%clk 0:03:00]}  c6 {[%clk 0:02:55]} 4. d4 {[%clk 0:03:00]}  Bf5 {[%clk 0:02:54]} 5. cxd5 {[%clk 0:03:00]}  cxd5 {[%clk 0:02:54]} 6. Nc3 {[%clk 0:03:01]}  e6 {[%clk 0:02:54]} 7. Ne5 {[%clk 0:03:00]}  Nfd7 {[%clk 0:02:44]} 8. g4 {[%clk 0:02:54]}  Bg6 {[%clk 0:02:43]} 9. Nxg6 {[%clk 0:02:52]}  hxg6 {[%clk 0:02:44]} 10. h3 {[%clk 0:02:47]}  Nc6 {[%clk 0:02:44]} 11. Bg2 {[%clk 0:02:48]}  Bd6 {[%clk 0:02:43]} 12. O-O {[%clk 0:02:40]}  f5 {[%clk 0:02:34]} 13. e4 {[%clk 0:02:27]}  fxe4 {[%clk 0:02:26]} 14. f3 {[%clk 0:02:26]}  exf3 {[%clk 0:02:21]} 15. Qxf3 {[%clk 0:02:22]}  Qe7 {[%clk 0:02:20]} 16. Be3 {[%clk 0:02:20]}  O-O-O {[%clk 0:02:16]} 17. Nb5 {[%clk 0:02:19]}  Bb8 {[%clk 0:02:14]} 18. Rac1 {[%clk 0:02:16]}  a6 {[%clk 0:02:14]} 19. Nc3 {[%clk 0:02:11]}  Rdf8 {[%clk 0:02:11]} 20. Qe2 {[%clk 0:02:10]}  Rxf1+ {[%clk 0:02:10]} 21. Qxf1 {[%clk 0:02:03]}  Qd6 {[%clk 0:02:04]} 22. Qd3 {[%clk 0:01:28]}  Rf8 {[%clk 0:01:55]} 23. Bf2 {[%clk 0:01:23]}  Qh2+ {[%clk 0:01:41]} 24. Kf1 {[%clk 0:01:23]}  Bg3 {[%clk 0:01:42]} 25. Nd1 {[%clk 0:01:14]}  Bxf2 {[%clk 0:01:37]} 26. Nxf2 {[%clk 0:01:12]}  Rxf2+ {[%clk 0:01:37]} 27. Kxf2 {[%clk 0:01:11]}  Qf4+ {[%clk 0:01:37]} 28. Bf3 {[%clk 0:00:36]}  Qxc1 {[%clk 0:01:37]} 29. Qxg6 {[%clk 0:00:36]}  Qd2+ {[%clk 0:01:32]} 30. Kg3 {[%clk 0:00:32]}  Nxd4 {[%clk 0:01:29]} 31. Qxg7 {[%clk 0:00:27]}  Qe3 {[%clk 0:01:28]} 32. Qg8+ {[%clk 0:00:21]}  Kc7 {[%clk 0:01:27]} 33. Qf7 {[%clk 0:00:21]}  Qxf3+ {[%clk 0:01:10]} 34. Qxf3 {[%clk 0:00:21]}  Nxf3 {[%clk 0:01:10]} 35. Kxf3 {[%clk 0:00:20]}  Kd6 {[%clk 0:01:11]} 36. h4 {[%clk 0:00:20]}  Ke5 {[%clk 0:01:11]} 37. h5 {[%clk 0:00:18]}  Kf6 {[%clk 0:01:10]} 38. Kf4 {[%clk 0:00:17]}  e5+ {[%clk 0:01:10]} 39. Kf3 {[%clk 0:00:17]}  Kg5 {[%clk 0:01:10]} 40. Ke3 {[%clk 0:00:16]}  Nf6 {[%clk 0:01:10]} 0-1


[Site "https://www.chess.com"]

[Event "Titled Tuesday Blitz April 11 Late 2023"]
[White "Figorito, Nick"]
[Black "Hajiyev, Kanan"]
[WhiteFideId "30923689"]
[BlackFideId "13404148"]
[WhiteElo "2036"]
[BlackElo "2103"]
[Result "0-1"]
[Round "10"]
[TimeControl "180+2"]
[Date "2023.04.11"]
[WhiteClock "0:01:35"]
[BlackClock "0:01:35"]

1. Nf3 {[%clk 0:03:00]}  d5 {[%clk 0:02:59]} 2. g3 {[%clk 0:03:01]}  Nf6 {[%clk 0:02:59]} 3. Bg2 {[%clk 0:03:01]}  g6 {[%clk 0:03:00]} 4. O-O {[%clk 0:03:02]}  Bg7 {[%clk 0:03:00]} 5. c4 {[%clk 0:03:03]}  c6 {[%clk 0:03:00]} 6. cxd5 {[%clk 0:03:03]}  cxd5 {[%clk 0:03:00]} 7. d4 {[%clk 0:03:03]}  O-O {[%clk 0:03:01]} 8. Ne5 {[%clk 0:03:03]}  Nbd7 {[%clk 0:02:59]} 9. Nxd7 {[%clk 0:03:02]}  Bxd7 {[%clk 0:02:59]} 10. Nc3 {[%clk 0:03:02]}  Bc6 {[%clk 0:02:59]} 11. Bf4 {[%clk 0:03:02]}  Ne4 {[%clk 0:02:57]} 12. Rc1 {[%clk 0:02:53]}  e6 {[%clk 0:02:50]} 13. Nxe4 {[%clk 0:02:43]}  dxe4 {[%clk 0:02:50]} 14. Be3 {[%clk 0:02:36]}  Qd5 {[%clk 0:02:39]} 15. a3 {[%clk 0:02:27]}  Rfd8 {[%clk 0:02:36]} 16. Rc5 {[%clk 0:02:23]}  Qxc5 {[%clk 0:02:27]} 17. dxc5 {[%clk 0:02:22]}  Rxd1 {[%clk 0:02:28]} 18. Rxd1 {[%clk 0:02:21]}  Bxb2 {[%clk 0:02:29]} 19. Bc1 {[%clk 0:01:58]}  Bxc1 {[%clk 0:02:05]} 20. Rxc1 {[%clk 0:01:59]}  Rd8 {[%clk 0:02:05]} 21. e3 {[%clk 0:01:51]}  Rd3 {[%clk 0:01:59]} 22. a4 {[%clk 0:01:48]}  Ra3 {[%clk 0:01:53]} 23. Rc4 {[%clk 0:01:35]}  Ra1+ {[%clk 0:01:47]} 24. Bf1 {[%clk 0:01:35]}  Bxa4 {[%clk 0:01:35]} 0-1


[Site "https://www.chess.com"]

[Event "Titled Tuesday Blitz April 11 Late 2023"]
[White "Ladan, Nicholas"]
[Black "Buchenau, Frank"]
[WhiteFideId "30918855"]
[BlackFideId "4604350"]
[WhiteElo "2167"]
[BlackElo "2157"]
[Result "1-0"]
[Round "10"]
[TimeControl "180+2"]
[Date "2023.04.11"]
[WhiteClock "0:02:05"]
[BlackClock "0:01:30"]

1. b4 {[%clk 0:03:00]}  d5 {[%clk 0:02:59]} 2. Bb2 {[%clk 0:03:00]}  Bg4 {[%clk 0:02:58]} 3. h3 {[%clk 0:02:59]}  Bh5 {[%clk 0:02:57]} 4. g4 {[%clk 0:02:59]}  Bg6 {[%clk 0:02:57]} 5. Bg2 {[%clk 0:03:00]}  h5 {[%clk 0:02:51]} 6. Nf3 {[%clk 0:02:57]}  hxg4 {[%clk 0:02:50]} 7. hxg4 {[%clk 0:02:58]}  Rxh1+ {[%clk 0:02:49]} 8. Bxh1 {[%clk 0:02:58]}  Nd7 {[%clk 0:02:42]} 9. d3 {[%clk 0:02:46]}  f6 {[%clk 0:02:37]} 10. Nc3 {[%clk 0:02:37]}  c6 {[%clk 0:02:34]} 11. b5 {[%clk 0:02:33]}  e5 {[%clk 0:02:33]} 12. Nh4 {[%clk 0:02:25]}  Bf7 {[%clk 0:02:25]} 13. Nf5 {[%clk 0:02:24]}  g6 {[%clk 0:02:23]} 14. Ng3 {[%clk 0:02:23]}  d4 {[%clk 0:01:59]} 15. bxc6 {[%clk 0:02:12]}  bxc6 {[%clk 0:01:53]} 16. Nce4 {[%clk 0:02:10]}  Rb8 {[%clk 0:01:43]} 17. Bc1 {[%clk 0:02:09]}  Ne7 {[%clk 0:01:30]} 18. Nd6# {[%clk 0:02:05]} 1-0


[Site "https://www.chess.com"]

[Event "Titled Tuesday Blitz April 11 Late 2023"]
[White "Gurevich, Dmitry"]
[Black "Gonzalez Zamora, Juan Carlos"]
[WhiteFideId "2000407"]
[BlackFideId "3507548"]
[WhiteElo "2506"]
[BlackElo "2535"]
[Result "1-0"]
[Round "10"]
[TimeControl "180+2"]
[Date "2023.04.11"]
[WhiteClock "0:00:27"]
[BlackClock "0:00:01"]

1. d4 {[%clk 0:03:00]}  Nf6 {[%clk 0:02:57]} 2. c4 {[%clk 0:03:01]}  d6 {[%clk 0:02:57]} 3. Nc3 {[%clk 0:03:00]}  e5 {[%clk 0:02:57]} 4. Nf3 {[%clk 0:03:00]}  Nbd7 {[%clk 0:02:53]} 5. e4 {[%clk 0:03:00]}  Be7 {[%clk 0:02:51]} 6. Be2 {[%clk 0:03:00]}  O-O {[%clk 0:02:51]} 7. O-O {[%clk 0:03:00]}  c6 {[%clk 0:02:50]} 8. Qc2 {[%clk 0:02:59]}  Qc7 {[%clk 0:02:49]} 9. Rd1 {[%clk 0:02:59]}  Rd8 {[%clk 0:02:44]} 10. Be3 {[%clk 0:02:57]}  Ng4 {[%clk 0:02:37]} 11. Bd2 {[%clk 0:02:56]}  Bf6 {[%clk 0:02:19]} 12. d5 {[%clk 0:02:52]}  Qb6 {[%clk 0:02:13]} 13. Be1 {[%clk 0:02:52]}  Be7 {[%clk 0:01:42]} 14. h3 {[%clk 0:02:48]}  Ngf6 {[%clk 0:01:42]} 15. Bd2 {[%clk 0:02:49]}  Nf8 {[%clk 0:01:37]} 16. Be3 {[%clk 0:02:49]}  Qc7 {[%clk 0:01:37]} 17. Rac1 {[%clk 0:02:38]}  Ng6 {[%clk 0:01:36]} 18. b4 {[%clk 0:02:37]}  Bd7 {[%clk 0:01:32]} 19. c5 {[%clk 0:02:26]}  Rac8 {[%clk 0:01:24]} 20. dxc6 {[%clk 0:02:22]}  bxc6 {[%clk 0:01:17]} 21. cxd6 {[%clk 0:02:19]}  Bxd6 {[%clk 0:01:18]} 22. a3 {[%clk 0:02:08]}  Bf8 {[%clk 0:01:15]} 23. Nb5 {[%clk 0:01:49]}  Qb7 {[%clk 0:01:03]} 24. Nd6 {[%clk 0:01:49]}  Bxd6 {[%clk 0:01:03]} 25. Rxd6 {[%clk 0:01:49]}  c5 {[%clk 0:00:32]} 26. Ba6 {[%clk 0:01:38]}  Qb8 {[%clk 0:00:30]} 27. Bxc8 {[%clk 0:01:22]}  Qxd6 {[%clk 0:00:24]} 28. Bxc5 {[%clk 0:01:18]}  Qc6 {[%clk 0:00:21]} 29. Bxd7 {[%clk 0:01:09]}  Qxd7 {[%clk 0:00:21]} 30. Be3 {[%clk 0:01:01]}  h6 {[%clk 0:00:19]} 31. Qc7 {[%clk 0:00:59]}  Nxe4 {[%clk 0:00:18]} 32. Qxd7 {[%clk 0:00:54]}  Rxd7 {[%clk 0:00:19]} 33. Rc8+ {[%clk 0:00:53]}  Kh7 {[%clk 0:00:20]} 34. Ra8 {[%clk 0:00:54]}  Rd1+ {[%clk 0:00:12]} 35. Kh2 {[%clk 0:00:53]}  Nf4 {[%clk 0:00:11]} 36. Rxa7 {[%clk 0:00:48]}  f6 {[%clk 0:00:11]} 37. b5 {[%clk 0:00:45]}  Nd3 {[%clk 0:00:11]} 38. b6 {[%clk 0:00:42]}  Ndxf2 {[%clk 0:00:09]} 39. Bxf2 {[%clk 0:00:41]}  Nxf2 {[%clk 0:00:07]} 40. b7 {[%clk 0:00:37]}  Rh1+ {[%clk 0:00:03]} 41. Kg3 {[%clk 0:00:36]}  Ne4+ {[%clk 0:00:04]} 42. Kg4 {[%clk 0:00:33]}  Nf2+ {[%clk 0:00:03]} 43. Kf5 {[%clk 0:00:32]}  Rb1 {[%clk 0:00:02]} 44. a4 {[%clk 0:00:32]}  Rb6 {[%clk 0:00:01]} 45. Nxe5 {[%clk 0:00:27]} 1-0


[Site "https://www.chess.com"]

[Event "Titled Tuesday Blitz April 11 Late 2023"]
[White "Kovalevsky, Stanislav"]
[Black "Skaric, Djuro"]
[WhiteFideId "13508598"]
[BlackFideId "934569"]
[WhiteElo "2174"]
[BlackElo "2282"]
[Result "1-0"]
[Round "10"]
[TimeControl "180+2"]
[Date "2023.04.11"]
[WhiteClock "0:00:19"]
[BlackClock "0:00:11"]

1. c4 {[%clk 0:03:00]}  d6 {[%clk 0:03:00]} 2. Nc3 {[%clk 0:03:00]}  g6 {[%clk 0:03:00]} 3. g3 {[%clk 0:03:00]}  Bg7 {[%clk 0:03:01]} 4. Bg2 {[%clk 0:03:01]}  Nc6 {[%clk 0:03:01]} 5. a3 {[%clk 0:03:00]}  e5 {[%clk 0:03:02]} 6. b4 {[%clk 0:03:01]}  f5 {[%clk 0:03:02]} 7. b5 {[%clk 0:03:01]}  Nd4 {[%clk 0:03:01]} 8. e3 {[%clk 0:02:59]}  Ne6 {[%clk 0:03:01]} 9. Nge2 {[%clk 0:02:59]}  Nf6 {[%clk 0:02:59]} 10. d4 {[%clk 0:02:58]}  e4 {[%clk 0:02:56]} 11. Bb2 {[%clk 0:02:56]}  O-O {[%clk 0:02:54]} 12. Nf4 {[%clk 0:02:37]}  Nxf4 {[%clk 0:02:54]} 13. exf4 {[%clk 0:02:26]}  e3 {[%clk 0:02:33]} 14. fxe3 {[%clk 0:02:18]}  Re8 {[%clk 0:02:33]} 15. Qd3 {[%clk 0:02:07]}  Ng4 {[%clk 0:02:32]} 16. Nd1 {[%clk 0:02:04]}  c5 {[%clk 0:02:27]} 17. bxc6 {[%clk 0:01:51]}  Qb6 {[%clk 0:02:20]} 18. O-O {[%clk 0:01:30]}  bxc6 {[%clk 0:02:18]} 19. Rb1 {[%clk 0:01:23]}  Rb8 {[%clk 0:02:17]} 20. h3 {[%clk 0:01:22]}  Nf6 {[%clk 0:02:10]} 21. Nf2 {[%clk 0:01:06]}  Ba6 {[%clk 0:02:09]} 22. Bc3 {[%clk 0:01:04]}  Qc7 {[%clk 0:02:07]} 23. Rxb8 {[%clk 0:00:51]}  Rxb8 {[%clk 0:02:05]} 24. d5 {[%clk 0:00:49]}  cxd5 {[%clk 0:01:57]} 25. Bxf6 {[%clk 0:00:37]}  Bxf6 {[%clk 0:01:31]} 26. Bxd5+ {[%clk 0:00:36]}  Kg7 {[%clk 0:01:31]} 27. g4 {[%clk 0:00:35]}  h6 {[%clk 0:00:55]} 28. gxf5 {[%clk 0:00:31]}  gxf5 {[%clk 0:00:55]} 29. Qxf5 {[%clk 0:00:27]}  Bc8 {[%clk 0:00:55]} 30. Qh5 {[%clk 0:00:22]}  Rb3 {[%clk 0:00:16]} 31. Kh1 {[%clk 0:00:20]}  Rxe3 {[%clk 0:00:15]} 32. Rg1+ {[%clk 0:00:20]}  Kf8 {[%clk 0:00:15]} 33. Rg8+ {[%clk 0:00:18]}  Ke7 {[%clk 0:00:11]} 34. Qf7# {[%clk 0:00:19]} 1-0


[Site "https://www.chess.com"]

[Event "Titled Tuesday Blitz April 11 Late 2023"]
[White "Mordechai, Hanan"]
[Black "Osmonbekov, Talaibek"]
[WhiteFideId "2804166"]
[BlackFideId "2017253"]
[WhiteElo "2324"]
[BlackElo "2135"]
[Result "1/2-1/2"]
[Round "10"]
[TimeControl "180+2"]
[Date "2023.04.11"]
[WhiteClock "0:00:10"]
[BlackClock "0:00:12"]

1. e4 {[%clk 0:02:59]}  c5 {[%clk 0:02:58]} 2. Nf3 {[%clk 0:02:58]}  d6 {[%clk 0:02:58]} 3. d4 {[%clk 0:02:59]}  cxd4 {[%clk 0:02:59]} 4. Nxd4 {[%clk 0:02:59]}  Nf6 {[%clk 0:03:00]} 5. Nc3 {[%clk 0:03:00]}  g6 {[%clk 0:03:01]} 6. Be3 {[%clk 0:02:57]}  Bg7 {[%clk 0:03:01]} 7. f3 {[%clk 0:02:56]}  O-O {[%clk 0:03:01]} 8. Qd2 {[%clk 0:02:56]}  Nc6 {[%clk 0:03:02]} 9. O-O-O {[%clk 0:02:56]}  d5 {[%clk 0:03:02]} 10. Qe1 {[%clk 0:02:55]}  e5 {[%clk 0:03:02]} 11. Nxc6 {[%clk 0:02:54]}  bxc6 {[%clk 0:03:03]} 12. exd5 {[%clk 0:02:54]}  Nxd5 {[%clk 0:03:03]} 13. Bc4 {[%clk 0:02:47]}  Be6 {[%clk 0:03:03]} 14. Ne4 {[%clk 0:02:33]}  Qc7 {[%clk 0:03:03]} 15. Bc5 {[%clk 0:02:32]}  Rfd8 {[%clk 0:03:02]} 16. h4 {[%clk 0:02:27]}  h6 {[%clk 0:02:59]} 17. g4 {[%clk 0:02:25]}  Rab8 {[%clk 0:02:59]} 18. g5 {[%clk 0:02:23]}  Qb7 {[%clk 0:02:18]} 19. Bb3 {[%clk 0:02:20]}  h5 {[%clk 0:02:17]} 20. Bd6 {[%clk 0:02:02]}  Rbc8 {[%clk 0:01:48]} 21. Nc5 {[%clk 0:02:00]}  Qb6 {[%clk 0:01:38]} 22. Nxe6 {[%clk 0:01:59]}  fxe6 {[%clk 0:01:34]} 23. Ba3 {[%clk 0:01:58]}  a5 {[%clk 0:01:30]} 24. Qe4 {[%clk 0:01:52]}  Kh7 {[%clk 0:01:25]} 25. Rd3 {[%clk 0:01:42]}  Nf4 {[%clk 0:01:19]} 26. Rxd8 {[%clk 0:01:30]}  Rxd8 {[%clk 0:01:20]} 27. Re1 {[%clk 0:01:22]}  Rd4 {[%clk 0:01:06]} 28. Qe3 {[%clk 0:01:15]}  a4 {[%clk 0:01:03]} 29. Bxa4 {[%clk 0:01:10]}  Ng2 {[%clk 0:01:02]} 30. Qc3 {[%clk 0:00:40]}  Nxe1 {[%clk 0:01:00]} 31. Bc5 {[%clk 0:00:40]}  Qa6 {[%clk 0:00:47]} 32. Bxd4 {[%clk 0:00:34]}  exd4 {[%clk 0:00:46]} 33. Qxe1 {[%clk 0:00:25]}  Qxa4 {[%clk 0:00:46]} 34. Qxe6 {[%clk 0:00:26]}  Qb5 {[%clk 0:00:33]} 35. Qe4 {[%clk 0:00:11]}  d3 {[%clk 0:00:26]} 36. c3 {[%clk 0:00:11]}  c5 {[%clk 0:00:23]} 37. a4 {[%clk 0:00:04]}  Qa6 {[%clk 0:00:19]} 38. c4 {[%clk 0:00:03]}  Qxa4 {[%clk 0:00:16]} 39. Qxd3 {[%clk 0:00:03]}  Qa1+ {[%clk 0:00:17]} 40. Kd2 {[%clk 0:00:04]}  Qxb2+ {[%clk 0:00:16]} 41. Ke3 {[%clk 0:00:05]}  Qd4+ {[%clk 0:00:16]} 42. Qxd4 {[%clk 0:00:04]}  Bxd4+ {[%clk 0:00:17]} 43. Ke4 {[%clk 0:00:05]}  Kg7 {[%clk 0:00:17]} 44. f4 {[%clk 0:00:05]}  Kf7 {[%clk 0:00:17]} 45. f5 {[%clk 0:00:05]}  Bf2 {[%clk 0:00:15]} 46. fxg6+ {[%clk 0:00:04]}  Kxg6 {[%clk 0:00:15]} 47. Kd5 {[%clk 0:00:05]}  Bxh4 {[%clk 0:00:15]} 48. Kxc5 {[%clk 0:00:06]}  Bxg5 {[%clk 0:00:14]} 49. Kd4 {[%clk 0:00:06]}  h4 {[%clk 0:00:14]} 50. Ke4 {[%clk 0:00:07]}  h3 {[%clk 0:00:11]} 51. Kf3 {[%clk 0:00:08]}  Bf4 {[%clk 0:00:11]} 52. Kf2 {[%clk 0:00:07]}  Kg5 {[%clk 0:00:11]} 53. Kg1 {[%clk 0:00:07]}  Kg4 {[%clk 0:00:11]} 54. Kh1 {[%clk 0:00:07]}  Kg3 {[%clk 0:00:11]} 55. c5 {[%clk 0:00:08]}  Bc7 {[%clk 0:00:11]} 56. c6 {[%clk 0:00:09]}  Kh4 {[%clk 0:00:11]} 57. Kg1 {[%clk 0:00:09]}  Kg3 {[%clk 0:00:11]} 58. Kh1 {[%clk 0:00:10]}  h2 {[%clk 0:00:12]} 1/2-1/2


[Site "https://www.chess.com"]

[Event "Titled Tuesday Blitz April 11 Late 2023"]
[White "Spitzl, Vinzent"]
[Black "Steenbekkers, Franck"]
[WhiteFideId "12901253"]
[BlackFideId "1004220"]
[WhiteElo "2225"]
[BlackElo "2164"]
[Result "1-0"]
[Round "10"]
[TimeControl "180+2"]
[Date "2023.04.11"]
[WhiteClock "0:00:08"]
[BlackClock "0:00:02"]

1. e4 {[%clk 0:03:00]}  c5 {[%clk 0:02:59]} 2. Nf3 {[%clk 0:02:54]}  Nc6 {[%clk 0:02:58]} 3. d4 {[%clk 0:02:54]}  cxd4 {[%clk 0:02:57]} 4. Nxd4 {[%clk 0:02:55]}  Nf6 {[%clk 0:02:57]} 5. Nc3 {[%clk 0:02:55]}  e5 {[%clk 0:02:57]} 6. Ndb5 {[%clk 0:02:55]}  d6 {[%clk 0:02:57]} 7. Bg5 {[%clk 0:02:55]}  a6 {[%clk 0:02:57]} 8. Na3 {[%clk 0:02:55]}  b5 {[%clk 0:02:57]} 9. Nd5 {[%clk 0:02:55]}  Be7 {[%clk 0:02:56]} 10. Bxf6 {[%clk 0:02:55]}  Bxf6 {[%clk 0:02:56]} 11. c4 {[%clk 0:02:56]}  b4 {[%clk 0:02:54]} 12. Nc2 {[%clk 0:02:57]}  a5 {[%clk 0:02:53]} 13. g3 {[%clk 0:02:54]}  Bg5 {[%clk 0:02:51]} 14. h4 {[%clk 0:02:53]}  Bh6 {[%clk 0:02:50]} 15. Bh3 {[%clk 0:02:53]}  O-O {[%clk 0:02:49]} 16. Kf1 {[%clk 0:02:53]}  Ne7 {[%clk 0:02:48]} 17. Kg2 {[%clk 0:02:47]}  Nxd5 {[%clk 0:02:46]} 18. Qxd5 {[%clk 0:02:42]}  Bxh3+ {[%clk 0:02:44]} 19. Kxh3 {[%clk 0:02:29]}  Rc8 {[%clk 0:02:44]} 20. b3 {[%clk 0:02:29]}  Rc5 {[%clk 0:02:42]} 21. Qd3 {[%clk 0:02:29]}  Qd7+ {[%clk 0:02:40]} 22. Kg2 {[%clk 0:02:29]}  f5 {[%clk 0:02:40]} 23. exf5 {[%clk 0:02:28]}  Rxf5 {[%clk 0:02:38]} 24. Rad1 {[%clk 0:02:25]}  Rf6 {[%clk 0:02:36]} 25. Rhe1 {[%clk 0:02:22]}  Qc6+ {[%clk 0:02:23]} 26. Qe4 {[%clk 0:02:18]}  Qc7 {[%clk 0:02:15]} 27. a3 {[%clk 0:02:05]}  d5 {[%clk 0:02:10]} 28. Qxe5 {[%clk 0:02:01]}  Qb7 {[%clk 0:01:59]} 29. Qe8+ {[%clk 0:01:44]}  Rf8 {[%clk 0:01:56]} 30. Qe6+ {[%clk 0:01:44]}  Kh8 {[%clk 0:01:56]} 31. Rxd5 {[%clk 0:01:39]}  bxa3 {[%clk 0:01:47]} 32. Nxa3 {[%clk 0:01:26]}  Rxd5 {[%clk 0:01:18]} 33. Qxd5 {[%clk 0:01:22]}  Qxb3 {[%clk 0:01:17]} 34. Nb5 {[%clk 0:01:17]}  a4 {[%clk 0:01:02]} 35. Nd6 {[%clk 0:01:13]}  g6 {[%clk 0:00:53]} 36. Nf7+ {[%clk 0:01:08]}  Kg7 {[%clk 0:00:52]} 37. Nxh6 {[%clk 0:00:57]}  Kxh6 {[%clk 0:00:49]} 38. Qg5+ {[%clk 0:00:58]}  Kg7 {[%clk 0:00:48]} 39. Re7+ {[%clk 0:00:58]}  Rf7 {[%clk 0:00:48]} 40. Qe5+ {[%clk 0:00:58]}  Kg8 {[%clk 0:00:41]} 41. Re8+ {[%clk 0:00:55]}  Rf8 {[%clk 0:00:41]} 42. Qe6+ {[%clk 0:00:52]}  Kg7 {[%clk 0:00:40]} 43. Re7+ {[%clk 0:00:51]}  Kh6 {[%clk 0:00:35]} 44. Qg4 {[%clk 0:00:44]}  Rf5 {[%clk 0:00:27]} 45. Qe4 {[%clk 0:00:31]}  a3 {[%clk 0:00:26]} 46. Qd4 {[%clk 0:00:26]}  Qf3+ {[%clk 0:00:19]} 47. Kg1 {[%clk 0:00:26]}  a2 {[%clk 0:00:18]} 48. Qd2+ {[%clk 0:00:16]}  Kh5 {[%clk 0:00:17]} 49. Qxa2 {[%clk 0:00:15]}  Kg4 {[%clk 0:00:15]} 50. Qe2 {[%clk 0:00:13]}  Qxe2 {[%clk 0:00:11]} 51. Rxe2 {[%clk 0:00:14]}  Rc5 {[%clk 0:00:10]} 52. Re4+ {[%clk 0:00:14]}  Kh3 {[%clk 0:00:09]} 53. Kf1 {[%clk 0:00:14]}  Ra5 {[%clk 0:00:07]} 54. Ke2 {[%clk 0:00:14]}  Kg2 {[%clk 0:00:06]} 55. Ke3 {[%clk 0:00:09]}  Ra3+ {[%clk 0:00:05]} 56. Kf4 {[%clk 0:00:08]}  Kxf2 {[%clk 0:00:03]} 57. g4 {[%clk 0:00:08]}  Rf3+ {[%clk 0:00:02]} 58. Kg5 {[%clk 0:00:08]} 1-0


[Site "https://www.chess.com"]